fUST/lending_fUST_20240924
["ID","MTS","AMOUNT","RATE_DAILY","PERIOD"]
[339029113,1727141226151,-305.83862827,0.0002616,4]
[339029114,1727141226172,-111.18459714,0.00027,2]
[339029115,1727141239118,-326.5808148,0.00027,2]
[339029117,1727141244251,-96.23458806,0.00027,2]
[339029118,1727141244273,-419.939149,0.00027397,2]
[339029119,1727141244294,-167.052326,0.00027594,2]
[339029120,1727141244315,-380.0,0.00027635,2]
[339029121,1727141244337,-534.0,0.00027671,2]
[339029122,1727141244360,-170.273548,0.00027716,2]
[339029123,1727141244384,-196.43896982,0.000278,2]
[339029124,1727141244405,-250.0,0.00027849,2]
[339029125,1727141244427,-170.273548,0.00027877,2]
[339029126,1727141244448,-500.0,0.000279,7]
[339029127,1727141244468,-177.05325963,0.000279,7]
[339029128,1727141244489,-215.73035041,0.00027945,2]
[339029130,1727141252118,1000.0,0.00022,10]
[339029131,1727141253121,-965.22628371,0.00025,30]
[339029132,1727141253147,-318.26964959,0.00027945,2]
[339029133,1727141253172,-170.273548,0.00028037,2]
[339029134,1727141253195,-170.273548,0.00028197,2]
[339029135,1727141253217,-300.0,0.00028218,2]
[339029136,1727141253239,-300.0,0.00028218,2]
[339029137,1727141253260,-534.0,0.00028219,2]
[339029138,1727141253281,-344.50261802,0.00028264,2]
[339029209,1727141323237,193.08491622,0.0002,2]
[339029210,1727141346116,-253.81,0.00023644,2]
[339029211,1727141346137,-500.0,0.00024,2]
[339029212,1727141346158,-1000.0,0.00025,5]
[339029213,1727141346179,-528.55407806,0.0002509,2]
[339029214,1727141359066,-201.79432593,0.0002509,2]
[339029239,1727141432261,-900.0,0.00025469,3]
[339029240,1727141432271,-547.031611,0.00027168,2]
[339029257,1727141440230,-1033.8564052,0.00027168,2]
[339029258,1727141440240,-164.743728,0.00027276,2]
[339029260,1727141440250,-314.009032,0.00027459,2]
[339029261,1727141440261,-212.41320334,0.00028123,8]
[339029262,1727141440273,-543.49954619,0.00028123,8]
[339029263,1727141440283,-314.009032,0.00028144,2]
[339029264,1727141440292,-151.34866798,0.00028207,2]
[339029265,1727141440302,-537.06628398,0.00028264,2]
[339029266,1727141440312,-170.273548,0.00028358,2]
[339029267,1727141440321,-454.58954526,0.00028404,8]
[339029268,1727141440330,-534.0,0.00028493,2]
[339029269,1727141440340,-170.273548,0.00028518,2]
[339029270,1727141440349,-170.273548,0.00028679,2]
[339029271,1727141440359,-300.0,0.00028766,2]
[339029272,1727141440369,-300.0,0.00028766,2]
[339029273,1727141440378,-534.0,0.00028767,2]
[339029274,1727141440388,-534.0,0.00028767,2]
[339029275,1727141440397,-314.009032,0.00028829,2]
[339029276,1727141440407,-170.273548,0.00028839,2]
[339029277,1727141440416,-167.052326,0.00028848,2]
[339029278,1727141440425,-699.2588121,0.00028973,2]
[339029279,1727141440435,-170.273548,0.00029,2]
[339029280,1727141440444,-500.0,0.00029006,2]
[339029281,1727141440454,-500.0,0.00029006,2]
[339029282,1727141440463,-500.0,0.00029006,2]
[339029283,1727141440473,-500.0,0.00029006,2]
[339029284,1727141440483,-500.0,0.00029006,2]
[339029285,1727141440493,-622.31583516,0.00029006,2]
[339029286,1727141440502,-24900.0,0.00029007,2]
[339029287,1727141440514,-611.39630547,0.00029073,5]
[339029288,1727141440525,-500.0,0.00029073,5]
[339029289,1727141440534,-170.273548,0.0002916,2]
[339029290,1727141440544,-193.0,0.00029481,4]
[339029291,1727141440554,-502.00599836,0.00029621,5]
[339029292,1727141440564,-660.0,0.0002963,2]
[339029293,1727141440574,-534.0,0.00029918,2]
[339029294,1727141440584,-1209.58109183,0.0003,3]
[339029295,1727141440594,-374.0,0.0003,2]
[339029296,1727141440604,-1000.0,0.0003,2]
[339029297,1727141440615,-1000.0,0.0003,2]
[339029298,1727141440625,-1000.0,0.0003,2]
[339029299,1727141440634,-1000.0,0.0003,2]
[339029300,1727141440644,-1000.0,0.0003,2]
[339029301,1727141440655,-1000.0,0.0003,2]
[339029302,1727141440665,-1000.0,0.0003,2]
[339029303,1727141440674,-302.90088783,0.0003,2]
[339029304,1727141440684,-167.052326,0.00030102,2]
[339029305,1727141440694,-551.0,0.00030205,2]
[339029306,1727141440704,-168.271223,0.00030379,2]
[339029307,1727141440713,-1051.19369408,0.0003059,2]
[339029308,1727141440723,-207.06398915,0.0003059,2]
[339029309,1727141440733,-193.0,0.00030592,5]
[339029310,1727141440743,-186.60284914,0.0003065,2]
[339029311,1727141440752,-500.0,0.00030673,5]
[339029312,1727141440764,-420.0,0.00031043,2]
[339029313,1727141440774,-534.0,0.00031068,2]
[339029314,1727141440783,-534.0,0.00031068,2]
[339029315,1727141440793,-500.0,0.00031221,5]
[339029316,1727141440803,-167.052326,0.00031356,2]
[339029317,1727141440813,-735.5438,0.00031413,30]
[339029318,1727141440823,-420.0,0.00031643,2]
[339029319,1727141440832,-822.42153791,0.00031688,2]
[339029320,1727141440842,-193.0,0.00031702,6]
[339029321,1727141440851,-503.51269323,0.000318,3]
[339029379,1727141443732,-251.13286,0.00027,120]
[339029381,1727141443742,-551.84521108,0.0003082,2]
[339029614,1727141446138,-147.41360098,0.0003082,2]
[339029616,1727141446148,-706.0683986,0.000318,3]
[339029619,1727141446157,-534.0,0.00031932,2]
[339029621,1727141446168,-208.977489,0.00032137,2]
[339029623,1727141446177,-200.72,0.00032197,3]
[339029625,1727141446186,-177.56,0.00032197,3]
[339029627,1727141446196,-340.60898786,0.00032206,2]
[339029629,1727141446206,-203.71549385,0.00032206,2]
[339029631,1727141446215,-500.0,0.00032206,2]
[339029633,1727141446224,-500.0,0.00032206,2]
[339029635,1727141446233,-500.0,0.00032206,2]
[339029637,1727141446242,-500.0,0.00032206,2]
[339029639,1727141446252,-601.57688225,0.00032206,2]
[339029641,1727141446262,-378.1391474,0.00032206,2]
[339029852,1727142430132,-180.7994751,0.00026133,2]
[339029853,1727142430153,-164.656628,0.0002708,2]
[339029854,1727142430173,-167.388045,0.00027116,2]
[339029855,1727142430193,-152.76152445,0.00027397,2]
[339029856,1727142430214,-398.942191,0.00027397,2]
[339029857,1727142430236,-583.138353,0.00027549,2]
[339029858,1727142430258,-250.0,0.00027598,2]
[339029859,1727142430278,-694.413057,0.00027606,2]
[339029860,1727142430299,-250.0,0.00027674,2]
[339029861,1727142430320,-250.0,0.0002775,2]
[339029862,1727142430341,-492.15838722,0.00027801,2]
[339029863,1727142430363,-250.0,0.00027826,2]
[339029864,1727142430384,-250.0,0.00027901,2]
[339029865,1727142430404,-250.0,0.00027977,2]
[339029866,1727142430426,-250.0,0.00028053,2]
[339029867,1727142430447,-250.0,0.00028128,2]
[339029868,1727142430467,-250.0,0.00028204,2]
[339029869,1727142430491,-250.0,0.0002828,2]
[339029870,1727142430515,-694.413057,0.00028291,2]
[339029871,1727142430537,-167.388045,0.00028348,2]
[339029872,1727142430558,-250.0,0.00028355,2]
[339029873,1727142430580,-300.0,0.00028431,2]
[339029874,1727142430602,-250.0,0.00028431,2]
[339029875,1727142430623,-250.0,0.00028507,2]
[339029876,1727142430644,-250.0,0.00028583,2]
[339029877,1727142430667,-250.0,0.00028658,2]
[339029878,1727142430688,-250.0,0.00028734,2]
[339029879,1727142430710,-250.0,0.0002881,2]
[339029880,1727142430732,-250.0,0.00028885,2]
[339029881,1727142430754,-250.0,0.00028961,2]
[339029882,1727142430776,-694.413057,0.00028976,2]
[339029883,1727142430796,-250.0,0.00029037,2]
[339029884,1727142430816,-162.629683,0.0002909,2]
[339029885,1727142430836,-267.41,0.00029368,2]
[339029886,1727142430856,-34.20329304,0.00029368,2]
[339029887,1727142432103,-492.15838721,0.00028536,2]
[339029888,1727142432124,-233.20670696,0.00029368,2]
[339029889,1727142432145,-176.06451907,0.00029368,2]
[339029890,1727142439155,-492.15838721,0.00029271,2]
[339029891,1727142439180,-91.34548093,0.00029368,2]
[339029892,1727142439203,-267.41,0.00029368,2]
[339029893,1727142439226,-267.41,0.00029368,2]
[339029894,1727142439261,-994.86795041,0.00029369,2]
[339029895,1727142451172,-669.2,0.00029359,3]
[339029896,1727142451194,-2744.64591708,0.00029369,2]
[339029899,1727142566138,-233.86746,0.00027,120]
[339029900,1727142566159,-167.388045,0.00027244,2]
[339029901,1727142566180,-300.0,0.00027739,2]
[339029902,1727142566200,-216.03250839,0.0002774,2]
[339029903,1727142566220,-500.0,0.0002774,2]
[339029904,1727142566241,-2.94894555,0.0002774,2]
[339029984,1727142638770,-188.74396936,0.0002774,2]
[339029985,1727142638784,-500.0,0.0002774,2]
[339029986,1727142638793,-500.0,0.0002774,2]
[339029987,1727142638803,-500.0,0.0002774,2]
[339029988,1727142638812,-500.0,0.0002774,2]
[339029989,1727142638822,-500.0,0.0002774,2]
[339029990,1727142638832,-500.0,0.0002774,2]
[339029991,1727142638842,-500.0,0.0002774,2]
[339029992,1727142638852,-500.0,0.0002774,2]
[339029993,1727142638862,-500.0,0.0002774,2]
[339029994,1727142638872,-435.40312352,0.0002774,2]
[339029995,1727142638881,-500.0,0.0002774,2]
[339029996,1727142638891,-500.0,0.0002774,2]
[339029997,1727142638901,-500.0,0.0002774,2]
[339029998,1727142638910,-500.0,0.0002774,2]
[339029999,1727142638920,-500.0,0.0002774,2]
[339030000,1727142638929,-500.0,0.0002774,2]
[339030001,1727142638938,-500.0,0.0002774,2]
[339030002,1727142638948,-500.0,0.0002774,2]
[339030003,1727142638957,-500.0,0.0002774,2]
[339030004,1727142638966,-500.0,0.0002774,2]
[339030005,1727142638975,-500.0,0.0002774,2]
[339030006,1727142638984,-500.0,0.0002774,2]
[339030007,1727142638993,-500.0,0.0002774,2]
[339030008,1727142639004,-500.0,0.0002774,2]
[339030009,1727142639014,-500.0,0.0002774,2]
[339030010,1727142639023,-500.0,0.0002774,2]
[339030011,1727142639032,-500.0,0.0002774,2]
[339030012,1727142639042,-500.0,0.0002774,2]
[339030013,1727142639051,-500.0,0.0002774,2]
[339030014,1727142639061,-500.0,0.0002774,2]
[339030015,1727142639070,-527.05902013,0.0002774,2]
[339030016,1727142639079,-500.0,0.0002774,2]
[339030017,1727142639088,-500.0,0.0002774,2]
[339030018,1727142639097,-500.0,0.0002774,2]
[339030019,1727142639106,-500.0,0.0002774,2]
[339030020,1727142639116,-500.0,0.0002774,2]
[339030021,1727142639125,-500.0,0.0002774,2]
[339030022,1727142639135,-500.0,0.0002774,2]
[339030023,1727142639144,-500.0,0.0002774,2]
[339030024,1727142639153,-500.0,0.0002774,2]
[339030025,1727142639163,-500.0,0.0002774,2]
[339030026,1727142639173,-24900.0,0.00027741,2]
[339030027,1727142639305,-506.57551037,0.00027773,5]
[339030028,1727142639315,-500.31833853,0.00027773,5]
[339030029,1727142639324,-500.0,0.00027773,5]
[339030030,1727142639334,-501.13220928,0.00027773,2]
[339030031,1727142639343,-150.51572849,0.00027773,5]
[339030032,1727142639353,-500.42397548,0.00027773,5]
[339030033,1727142639363,-179.27702462,0.00029269,2]
[339030034,1727142639373,-90779.59029966,0.00029357,2]
[339030086,1727142646721,-1478.30164398,0.00029357,2]
[339030102,1727142793704,3000.0,0.000216,2]
[339030103,1727142794090,3000.0,0.0002161,2]
[339030104,1727142794601,3000.0,0.0002162,2]
[339030105,1727142794933,3000.0,0.0002163,2]
[339030106,1727142795346,3000.0,0.0002164,2]
[339030107,1727142795837,3000.0,0.0002165,2]
[339030108,1727142796304,3000.0,0.0002166,2]
[339030109,1727142796897,3000.0,0.0002167,2]
[339030110,1727142797298,3000.0,0.0002168,2]
[339030111,1727142797687,3000.0,0.0002169,2]
[339030112,1727142798149,3000.0,0.000217,2]
[339030113,1727142798535,3000.0,0.0002171,2]
[339030114,1727142799169,3000.0,0.0002172,2]
[339030115,1727142799714,3000.0,0.0002173,2]
[339030116,1727142800131,3000.0,0.0002174,2]
[339030117,1727142800594,3527.97696,0.0002175,2]
[339030259,1727143392624,150.0,0.000216,2]
[339030338,1727143531140,-302.36509981,0.00024,2]
[339030339,1727143531168,-302.36509981,0.0002424,2]
[339030340,1727143531197,-302.36509981,0.0002448,2]
[339030341,1727143531223,-299.49760216,0.0002472,2]
[339030342,1727143543629,189.3964486,0.00025,120]
[339030382,1727143632103,-2.86749765,0.0002472,2]
[339030383,1727143632124,-302.36509981,0.0002496,2]
[339030384,1727143632150,-166.666666,0.00025076,2]
[339030385,1727143632174,-500.0,0.000252,2]
[339030386,1727143632195,-79.71061962,0.000252,2]
[339030387,1727143633114,-97.39825093,0.000252,2]
[339030388,1727143633138,-311.58951668,0.000252,4]
[339030389,1727143633159,-164.743728,0.00025262,2]
[339030390,1727143633180,-159.6175302,0.00025477,2]
[339030391,1727143635147,-140.3824698,0.00025477,2]
[339030392,1727143635169,-300.0,0.00025477,2]
[339030393,1727143635189,-2852.32671197,0.00025478,2]
[339030444,1727143753132,-620.9517311,0.00025448,2]
[339030445,1727143753155,-171.51958008,0.00025473,2]
[339030446,1727143753180,-500.0,0.00025473,2]
[339030447,1727143753203,-194.10700955,0.00025477,2]
[339030448,1727143757118,-105.89299045,0.00025477,2]
[339030449,1727143757140,-1493.26304578,0.00025478,2]
[339030450,1727143766164,-892.83237428,0.00025478,2]
[339030451,1727143772091,-183.31115944,0.00025478,2]
[339030529,1727143839086,-500.0,0.00025473,2]
[339030530,1727143839096,-300.0,0.00025477,2]
[339030531,1727143839106,-19478.26670853,0.00025478,2]
[339030532,1727143839116,-380.0,0.00025548,2]
[339030533,1727143839125,-200.0,0.00025632,2]
[339030534,1727143839135,-166.666666,0.00025759,2]
[339030535,1727143839144,-270.60034706,0.0002577,2]
[339030536,1727143839153,-500.0,0.0002577,2]
[339030537,1727143839163,-500.0,0.0002577,2]
[339030538,1727143839172,-500.0,0.0002577,2]
[339030539,1727143839182,-352.70590202,0.0002577,2]
[339030540,1727143839193,-3000.0,0.00025771,2]
[339030541,1727143839203,-321.217322,0.00025908,2]
[339030542,1727143839212,-630.485145,0.00025979,2]
[339030543,1727143839222,-250.0,0.00026013,2]
[339030544,1727143839233,-1294.3635865,0.00026041,2]
[339030545,1727143839242,-244.6422282,0.00026078,2]
[339030546,1727143839251,-157.192931,0.00026103,2]
[339030547,1727143839261,-157.192931,0.00026183,2]
[339030548,1727143839270,-337.26787648,0.00026219,2]
[339030549,1727143839280,-157.192931,0.00026263,2]
[339030550,1727143839289,-157.192931,0.00026343,2]
[339030551,1727143839299,-1160.53011498,0.00026403,2]
[339030552,1727143839307,-157.192931,0.00026423,2]
[339030553,1727143839317,-166.666666,0.00026443,2]
[339030554,1727143839327,-157.192931,0.00026503,2]
[339030555,1727143839336,-157.192931,0.00026583,2]
[339030556,1727143839345,-321.217322,0.00026593,2]
[339030557,1727143839354,-157.192931,0.00026663,2]
[339030558,1727143839363,-157.192931,0.00026743,2]
[339030559,1727143839373,-157.192931,0.00026823,2]
[339030560,1727143839382,-157.192931,0.00026903,2]
[339030561,1727143839391,-157.192931,0.00026983,2]
[339030562,1727143839400,-157.192931,0.00027063,2]
[339030563,1727143839410,-166.666666,0.00027127,2]
[339030564,1727143839419,-157.192931,0.00027143,2]
[339030565,1727143839428,-157.192931,0.00027223,2]
[339030566,1727143839437,-321.217322,0.00027278,2]
[339030567,1727143839446,-157.192931,0.00027303,2]
[339030568,1727143839455,-157.192931,0.00027383,2]
[339030569,1727143839465,-378.995081,0.00027397,2]
[339030570,1727143839474,-157.192931,0.00027463,2]
[339030571,1727143839483,-1051.39958418,0.00027536,2]
[339030572,1727143839493,-207.10454671,0.00027536,2]
[339030573,1727143839502,-501.45853946,0.00027573,5]
[339030574,1727143839512,-500.81581184,0.00027573,5]
[339030575,1727143839521,-500.41123994,0.00027608,5]
[339030576,1727143839531,-184.4934104,0.00027712,2]
[339030577,1727143839540,-166.666666,0.0002781,2]
[339030578,1727143839549,-824.6142201,0.00027953,2]
[339030579,1727143839559,-420.0,0.00028025,2]
[339030580,1727143839568,-500.0,0.000284,5]
[339030581,1727143839577,-500.61949064,0.000284,5]
[339030582,1727143839586,-325.89570339,0.000284,5]
[339030583,1727143839595,-166.666666,0.00028494,2]
[339030584,1727143839604,-1160.53011493,0.00028617,2]
[339030585,1727143839613,-500.7290716,0.00028636,5]
[339030586,1727143839622,-161.16816459,0.00028636,5]
[339030587,1727143839632,-500.0,0.0002865,5]
[339030588,1727143839641,-5061.00067661,0.00028677,2]
[339030589,1727143839651,-501.93848476,0.00028731,5]
[339030590,1727143839660,-502.83179825,0.00028731,5]
[339030591,1727143839669,-158.386,0.00028756,20]
[339030592,1727143839678,-5061.00067661,0.00028851,2]
[339030593,1727143839687,-501.03843937,0.00028948,5]
[339030594,1727143839697,-501.62043731,0.00028956,5]
[339030595,1727143839706,-501.24054705,0.00028956,5]
[339030596,1727143839716,-5061.00067663,0.0002907,2]
[339030597,1727143839725,-501.08964962,0.00029133,5]
[339030598,1727143839735,-465.78371596,0.00029133,5]
[339030599,1727143839744,-500.0,0.00029133,5]
[339030600,1727143839754,-500.94963868,0.00029198,5]
[339030601,1727143839763,-227.8,0.00029282,4]
[339030602,1727143839772,-175.69148505,0.00029298,2]
[339030603,1727143839781,-4116.85572987,0.00029357,2]
[339030604,1727143839790,-151.0,0.00029357,7]
[339030605,1727143839800,-151.0,0.00029357,7]
[339030606,1727143839809,-152.715461,0.000296,7]
[339030607,1727143839818,-533.891525,0.000296,7]
[339030608,1727143839827,-533.891525,0.000296,7]
[339030609,1727143839838,-151.0,0.000296,2]
[339030610,1727143839848,-875.944455,0.000296,7]
[339030611,1727143839857,-151.0,0.000296,7]
[339030612,1727143839866,-875.944455,0.000296,7]
[339030613,1727143839875,-151.0,0.000296,7]
[339030614,1727143839884,-151.0,0.000296,7]
[339030615,1727143839893,-151.0,0.000296,7]
[339030616,1727143839902,-258.654426,0.000296,7]
[339030617,1727143839911,-258.654426,0.000296,7]
[339030618,1727143839921,-151.0,0.000296,7]
[339030619,1727143839930,-151.0,0.000296,7]
[339030620,1727143839939,-151.0,0.000296,7]
[339030621,1727143839949,-151.0,0.000296,7]
[339030622,1727143839958,-834.734133,0.000296,7]
[339030623,1727143839967,-834.734133,0.000296,7]
[339030624,1727143839977,-255.565607,0.000296,7]
[339030625,1727143839986,-255.565607,0.000296,7]
[339030626,1727143839996,-151.0,0.000296,7]
[339030627,1727143840005,-151.0,0.000296,7]
[339030628,1727143840014,-151.0,0.000296,7]
[339030629,1727143840024,-151.0,0.000296,7]
[339030630,1727143840033,-512.674706,0.000296,7]
[339030631,1727143840042,-512.674706,0.000296,7]
[339030632,1727143840052,-1000.0,0.00029681,5]
[339030633,1727143840062,-500.0,0.00029979,2]
[339030634,1727143840071,-493.60146811,0.00029979,2]
[339030635,1727143840080,-238.78354928,0.00029979,2]
[339030636,1727143840089,-500.0,0.00029979,2]
[339030637,1727143840098,-500.0,0.00029979,2]
[339030638,1727143840108,-500.0,0.00029979,2]
[339030639,1727143840117,-500.0,0.00029979,2]
[339030640,1727143840126,-273.00248763,0.00029979,2]
[339030641,1727143840135,-500.0,0.00029979,2]
[339030642,1727143840145,-500.0,0.00029979,2]
[339030643,1727143840154,-500.0,0.00029979,2]
[339030644,1727143840164,-382.30170842,0.00029979,2]
[339030645,1727143840173,-500.0,0.00029979,2]
[339030646,1727143840183,-500.0,0.00029979,2]
[339030647,1727143840194,-500.0,0.00029979,2]
[339030648,1727143840204,-500.0,0.00029979,2]
[339030649,1727143840213,-815.67,0.0002998,3]
[339030650,1727143840222,-815.67,0.0002998,3]
[339030651,1727143840232,-1419.49,0.0002998,3]
[339030652,1727143840242,-151.0,0.00029988,7]
[339030653,1727143840251,-151.0,0.0002999,7]
[339030654,1727143840260,-151.839638,0.0002999,7]
[339030655,1727143840272,-151.0,0.0002999,7]
[339030656,1727143840283,-151.0,0.0002999,7]
[339030657,1727143840292,-627.344608,0.0002999,7]
[339030658,1727143840302,-627.344608,0.0002999,7]
[339030659,1727143840311,-151.0,0.0002999,7]
[339030660,1727143840321,-151.0,0.0002999,7]
[339030661,1727143840330,-151.0,0.0002999,7]
[339030662,1727143840439,-50264.0550175,0.0002999,4]
[339030663,1727143840450,-1574.97939837,0.0002999,4]
[339030664,1727143840459,-151.0,0.0002999,7]
[339030665,1727143840469,-151.0,0.0002999,7]
[339030666,1727143840478,-151.0,0.0002999,7]
[339030667,1727143840487,-152.345085,0.0002999,7]
[339030668,1727143840497,-153.13756,0.0002999,7]
[339030669,1727143840507,-151.0,0.0002999,7]
[339030670,1727143840516,-512.674706,0.0002999,7]
[339030671,1727143840526,-512.674706,0.0002999,7]
[339030672,1727143840536,-512.674706,0.0002999,7]
[339030673,1727143840545,-512.674706,0.0002999,7]
[339030674,1727143840556,-1209.58109183,0.0003,3]
[339030675,1727143840566,-151.0,0.0003,7]
[339030676,1727143840577,-151.0,0.0003,7]
[339030677,1727143840587,-151.0,0.0003,7]
[339030678,1727143840596,-151.0,0.0003,7]
[339030679,1727143840606,-151.0,0.0003,7]
[339030680,1727143840616,-152.878018,0.0003,7]
[339030681,1727143840626,-627.344608,0.0003,7]
[339030683,1727143840635,-627.344608,0.0003,7]
[339030685,1727143840645,-533.891525,0.0003,7]
[339030686,1727143840654,-533.891525,0.0003,7]
[339030687,1727143840664,-259.557057,0.0003,2]
[339030688,1727143840674,-151.0,0.0003,7]
[339030689,1727143840683,-875.944455,0.0003,7]
[339030690,1727143840692,-151.0,0.0003,7]
[339030691,1727143840701,-875.944455,0.0003,7]
[339030692,1727143840711,-151.0,0.0003,7]
[339030693,1727143840720,-151.0,0.0003,7]
[339030694,1727143840730,-151.0,0.0003,7]
[339030695,1727143840739,-151.0,0.0003,7]
[339030696,1727143840748,-151.0,0.0003,7]
[339030697,1727143840757,-258.654426,0.0003,7]
[339030698,1727143840767,-202.0,0.0003,2]
[339030699,1727143840776,-151.0,0.0003,7]
[339030700,1727143840786,-258.654426,0.0003,7]
[339030701,1727143840795,-151.0,0.0003,7]
[339030702,1727143840806,-151.0,0.0003,7]
[339030703,1727143840814,-151.0,0.0003,7]
[339030704,1727143840824,-177.427085,0.0003,7]
[339030705,1727143840833,-834.734133,0.0003,7]
[339030706,1727143840843,-834.734133,0.0003,7]
[339030707,1727143840852,-255.565607,0.0003,7]
[339030708,1727143840863,-255.565607,0.0003,7]
[339030709,1727143840872,-1209.58109183,0.0003,3]
[339030710,1727143840881,-159.569935,0.0003,7]
[339030711,1727143840890,-1000.0,0.0003,2]
[339030712,1727143840900,-1000.0,0.0003,2]
[339030713,1727143840910,-1000.0,0.0003,2]
[339030714,1727143840919,-1000.0,0.0003,2]
[339030715,1727143840930,-1000.0,0.0003,2]
[339030716,1727143840939,-1000.0,0.0003,2]
[339030717,1727143840948,-1000.0,0.0003,2]
[339030718,1727143840957,-302.90088783,0.0003,2]
[339030719,1727143840966,-151.0,0.0003,7]
[339030720,1727143840976,-512.674706,0.0003,7]
[339030721,1727143840986,-512.674706,0.0003,7]
[339030722,1727143840996,-151.0,0.00030249,7]
[339030723,1727143841005,-1831.13515,0.00030249,7]
[339030724,1727143841014,-151.0,0.00030249,7]
[339030725,1727143841023,-1831.13515,0.00030249,7]
[339030726,1727143841034,-155.321831,0.00030249,7]
[339030727,1727143841043,-155.107751,0.00030249,7]
[339030728,1727143841062,-151.0,0.00030249,7]
[339030729,1727143841071,-533.891525,0.00030249,7]
[339030730,1727143841080,-533.891525,0.00030249,7]
[339030731,1727143841090,-875.944455,0.00030249,7]
[339030732,1727143841099,-875.944455,0.00030249,7]
[339030733,1727143841108,-151.0,0.00030249,7]
[339030734,1727143841117,-151.0,0.00030249,7]
[339030735,1727143841128,-151.0,0.00030249,7]
[339030736,1727143841137,-151.0,0.00030249,7]
[339030737,1727143841147,-258.654426,0.00030249,7]
[339030738,1727143841157,-151.0,0.00030249,7]
[339030739,1727143841166,-258.654426,0.00030249,7]
[339030740,1727143841175,-151.0,0.00030249,7]
[339030741,1727143841188,-195.146874,0.00030249,7]
[339030742,1727143841197,-151.0,0.00030249,7]
[339030743,1727143841206,-834.734133,0.00030249,7]
[339030744,1727143841215,-834.734133,0.00030249,7]
[339030745,1727143841224,-255.565607,0.00030249,7]
[339030746,1727143841234,-255.565607,0.00030249,7]
[339030747,1727143841244,-151.0,0.00030249,7]
[339030748,1727143841253,-1500.0,0.00030392,5]
[339030749,1727143841264,-227.8,0.00030411,5]
[339030750,1727143841274,-512.674706,0.00030411,7]
[339030751,1727143841284,-512.674706,0.00030411,7]
[339030752,1727143841293,-587.0,0.00030827,2]
[339030753,1727143841308,-1160.53011493,0.00030831,2]
[339030754,1727143841317,-2077.3898608,0.00031,30]
[339030755,1727143841326,-151.0,0.00031181,7]
[339030756,1727143841336,-834.734133,0.00031181,7]
[339030757,1727143841346,-834.734133,0.00031181,7]
[339030758,1727143841355,-255.565607,0.00031181,7]
[339030759,1727143841365,-255.565607,0.00031181,7]
[339030760,1727143841374,-2000.0,0.00031181,5]
[339030761,1727143841384,-151.0,0.00031232,7]
[339030762,1727143841394,-151.0,0.00031324,7]
[339030763,1727143841403,-151.0,0.00031324,7]
[339030764,1727143841413,-151.0,0.00031324,7]
[339030765,1727143841422,-166.92664134,0.00031337,2]
[339030766,1727143841431,-151.0,0.00031427,7]
[339030767,1727143841441,-512.674706,0.00031427,7]
[339030768,1727143841450,-512.674706,0.00031427,7]
[339030769,1727143841460,-510.22346565,0.00031427,15]
[339030770,1727143841469,-1365.19200542,0.00031427,15]
[339030771,1727143841478,-50264.0550175,0.00031427,4]
[339030772,1727143841488,-1574.97939837,0.00031427,4]
[339030773,1727143841498,-151.0,0.00031437,7]